bitfinex-derivatives/quotes_ETHF0:USTF0_20260117
["timestamp","ask_amount","ask_price","bid_price","bid_amount"]
[1768615823938,0.31608183,3289.7,3288.4,0.98728801]
[1768615824233,0.26022071,3289.8,3288.4,0.98728801]
[1768615824432,0.31608015,3289.7,3288.4,0.98728801]
[1768615824629,0.26022071,3289.8,3288.4,0.98728801]
[1768615824829,0.31608056,3289.7,3288.4,0.98728801]
[1768615825026,0.26022071,3289.8,3288.4,0.98728801]
[1768615825226,0.31608055,3289.7,3288.4,0.98728801]
[1768615825428,0.26022071,3289.8,3288.4,0.98728801]
[1768615825629,0.31607207,3289.7,3288.4,0.98728801]
[1768615825828,0.26022071,3289.8,3288.4,0.98728801]
[1768615826028,0.31607194,3289.7,3288.4,0.98728801]
[1768615826234,0.31607194,3289.6,3288.4,0.98728801]
[1768615826435,0.26022071,3289.8,3288.4,0.98728801]
[1768615826735,1.24000276,3289.7,3288.4,0.98728801]
[1768615827031,1.24000276,3289.6,3288.4,0.98728801]
[1768615827228,0.26022071,3289.8,3288.4,0.98728801]
[1768615827229,0.92371896,3289.5,3288.4,0.98728801]
[1768615827428,0.92371896,3289.4,3288.4,0.98728801]
[1768615827635,0.26022071,3289.8,3288.4,0.98728801]
[1768615827839,1.24004375,3289.7,3288.4,0.98728801]
[1768615828036,1.24004375,3289.6,3288.4,0.98728801]
[1768615828238,0.92374946,3289.5,3288.4,0.98728801]
[1768615828437,0.92374946,3289.4,3288.4,0.98728801]
[1768615828639,0.26022071,3289.8,3288.4,0.98728801]
[1768615828840,1.24002661,3289.7,3288.4,0.98728801]
[1768615829037,0.92373666,3289.6,3288.4,0.98728801]
[1768615829335,0.26022071,3289.8,3288.4,0.98728801]
[1768615829336,0.92373666,3289.5,3288.4,0.98728801]
[1768615829639,0.92373666,3289.4,3288.4,0.98728801]
[1768615829941,0.26022071,3289.8,3288.4,0.98728801]
[1768615830133,1.24002122,3289.7,3288.4,0.98728801]
[1768615830334,0.9237326,3289.6,3288.4,0.98728801]
[1768615830633,0.9237326,3289.5,3288.4,0.98728801]
[1768615830833,0.9237326,3289.4,3288.4,0.98728801]
[1768615831134,0.26022071,3289.8,3288.4,0.98728801]
[1768615831331,1.23240927,3289.7,3288.4,0.98728801]
[1768615831539,0.92373409,3289.6,3288.4,0.98728801]
[1768615831743,0.92373409,3289.5,3288.4,0.98728801]
[1768615832040,0.92373409,3289.4,3288.4,0.98728801]
[1768615832240,0.26022071,3289.8,3288.4,0.98728801]
[1768615832540,1.23244269,3289.7,3288.4,0.98728801]
[1768615832839,0.923762,3289.6,3288.4,0.98728801]
[1768615833034,0.923762,3289.5,3288.4,0.98728801]
[1768615833236,0.923762,3289.4,3288.4,0.98728801]
[1768615833537,0.26022071,3289.8,3288.4,0.98728801]
[1768615833733,1.23247579,3289.7,3288.4,0.98728801]
[1768615833934,0.92378691,3289.6,3288.4,0.98728801]
[1768615834143,0.92378691,3289.5,3288.4,0.98728801]
[1768615834341,0.92378691,3289.4,3288.4,0.98728801]
[1768615834543,0.26022071,3289.8,3288.4,0.98728801]
[1768615834742,1.23252254,3289.7,3288.4,0.98728801]
[1768615834944,0.92382207,3289.6,3288.4,0.98728801]
[1768615835133,0.92382207,3289.5,3288.4,0.98728801]
[1768615835333,0.92382207,3289.4,3288.4,0.98728801]
[1768615835542,0.26022071,3289.8,3288.4,0.98728801]
[1768615835744,1.22657294,3289.7,3288.4,0.98728801]
[1768615835938,0.91786158,3289.6,3288.4,0.98728801]
[1768615836139,0.91786158,3289.5,3288.4,0.98728801]
[1768615836349,0.91786158,3289.4,3288.4,0.98728801]
[1768615836539,0.26022071,3289.8,3288.4,0.98728801]
[1768615836739,1.22704518,3289.7,3288.4,0.98728801]
[1768615837052,0.91821513,3289.6,3288.4,0.98728801]
[1768615837231,0.91821513,3289.5,3288.4,0.98728801]
[1768615837437,0.91821513,3289.4,3288.4,0.98728801]
[1768615837638,0.26022071,3289.8,3288.4,0.98728801]
[1768615837935,1.22716419,3289.7,3288.4,0.98728801]
[1768615838132,0.91830439,3289.6,3288.4,0.98728801]
[1768615838338,0.91830439,3289.5,3288.4,0.98728801]
[1768615838640,0.91830439,3289.4,3288.4,0.98728801]
[1768615838844,0.26022071,3289.8,3288.4,0.98728801]
[1768615839045,1.22725776,3289.7,3288.4,0.98728801]
[1768615839248,1.22728982,3289.6,3288.4,0.98728801]
[1768615839449,0.91837472,3289.5,3288.4,0.98728801]
[1768615839639,0.91837472,3289.4,3288.4,0.98728801]
[1768615839947,0.26022071,3289.8,3288.4,0.98728801]
[1768615840144,1.22741707,3289.7,3288.4,0.98728801]
[1768615840343,1.22741707,3289.6,3288.4,0.98728801]
[1768615840548,0.9184691,3289.5,3288.4,0.98728801]
[1768615840747,0.9184691,3289.4,3288.4,0.98728801]
[1768615841045,0.9184691,3289.3,3288.4,0.98728801]
[1768615841247,0.26022071,3289.8,3288.4,0.98728801]
[1768615841547,1.22770815,3289.7,3288.4,0.98728801]
[1768615841748,1.22770815,3289.6,3288.4,0.98728801]
[1768615841948,0.9187088,3289.5,3288.4,0.98728801]
[1768615842150,0.9187088,3289.4,3288.4,0.98728801]
[1768615842348,0.9187088,3289.3,3288.4,0.98728801]
[1768615842549,0.29377079,3289.7,3288.4,0.98728801]
[1768615842742,1.22791009,3289.6,3288.4,0.98728801]
[1768615842943,0.91885976,3289.5,3288.4,0.98728801]
[1768615843146,0.91885976,3289.4,3288.4,0.98728801]
[1768615843345,0.91885976,3289.3,3288.4,0.98728801]
[1768615843545,0.29377079,3289.7,3288.4,0.98728801]
[1768615843745,1.22814639,3289.6,3288.4,0.98728801]
[1768615843951,0.91903646,3289.5,3288.4,0.98728801]
[1768615844147,0.91903646,3289.4,3288.4,0.98728801]
[1768615844346,0.91903646,3289.3,3288.4,0.98728801]
[1768615844642,0.91903646,3289.2,3288.4,0.98728801]
[1768615844849,0.29377079,3289.7,3288.4,0.98728801]
[1768615845044,1.22875845,3289.6,3288.4,0.98728801]
[1768615845242,1.22875845,3289.5,3288.4,0.98728801]
[1768615845446,0.91949385,3289.4,3288.4,0.98728801]
[1768615845647,0.91949385,3289.3,3288.4,0.98728801]
[1768615845854,0.91949385,3289.2,3288.4,0.98728801]
[1768615846055,0.29377079,3289.7,3288.4,0.98728801]
[1768615846353,1.22115432,3289.6,3288.4,0.98728801]
[1768615846553,1.22115432,3289.5,3288.4,0.98728801]
[1768615846853,0.29377079,3289.7,3288.4,0.98728801]
[1768615847052,1.22117886,3289.6,3288.4,0.98728801]
[1768615847254,1.22117886,3289.5,3288.4,0.98728801]
[1768615847449,0.29377079,3289.7,3288.4,0.98728801]
[1768615847450,0.91952987,3289.4,3288.4,0.98728801]
[1768615847751,0.91952987,3289.3,3288.4,0.98728801]
[1768615847957,0.91952987,3289.2,3288.4,0.98728801]
[1768615848139,0.29377079,3289.7,3288.4,0.98728801]
[1768615848340,1.22330786,3289.6,3288.4,0.98728801]
[1768615848549,1.22330786,3289.5,3288.4,0.98728801]
[1768615848751,0.91952834,3289.4,3288.4,0.98728801]
[1768615848945,0.91952834,3289.3,3288.4,0.98728801]
[1768615849147,0.91952834,3289.2,3288.4,0.98728801]
[1768615849346,0.29377079,3289.7,3288.4,0.98728801]
[1768615849645,1.22331321,3289.6,3288.4,0.98728801]
[1768615849847,1.22331321,3289.5,3288.4,0.98728801]
[1768615850153,0.91953279,3289.4,3288.4,0.98728801]
[1768615850353,0.91953279,3289.3,3288.4,0.98728801]
[1768615850551,0.91953279,3289.2,3288.4,0.98728801]
[1768615850753,0.29377079,3289.7,3288.4,0.98728801]
[1768615850943,1.22323454,3289.6,3288.4,0.98728801]
[1768615851144,1.22323454,3289.5,3288.4,0.98728801]
[1768615851346,0.91947364,3289.4,3288.4,0.98728801]
[1768615851647,0.91947364,3289.3,3288.4,0.98728801]
[1768615851847,0.91947364,3289.2,3288.4,0.98728801]
[1768615852060,0.29377079,3289.7,3288.4,0.98728801]
[1768615852257,1.22323407,3289.6,3288.4,0.98728801]
[1768615852453,1.22323232,3289.5,3288.4,0.98728801]
[1768615852754,0.91947313,3289.4,3288.4,0.98728801]
[1768615852956,0.91947313,3289.3,3288.4,0.98728801]
[1768615853141,0.91947313,3289.2,3288.4,0.98728801]
[1768615853345,0.29377079,3289.7,3288.4,0.98728801]
[1768615853541,1.22323351,3289.6,3288.4,0.98728801]
[1768615853746,1.22323351,3289.5,3288.4,0.98728801]
[1768615853948,0.29377079,3289.7,3288.4,0.98728801]
[1768615853949,0.91947246,3289.4,3288.4,0.98728801]
[1768615854146,0.91947246,3289.3,3288.4,0.98728801]
[1768615854354,0.91947246,3289.2,3288.4,0.98728801]
[1768615854558,0.29377079,3289.7,3288.4,0.98728801]
[1768615854761,1.22323331,3289.6,3288.4,0.98728801]
[1768615855056,0.91947234,3289.5,3288.4,0.98728801]
[1768615855258,0.91947234,3289.4,3288.4,0.98728801]
[1768615855453,0.91947234,3289.3,3288.4,0.98728801]
[1768615855652,0.91947234,3289.2,3288.4,0.98728801]
[1768615855854,0.29377079,3289.7,3288.4,0.98728801]
[1768615856155,1.22323412,3289.6,3288.4,0.98728801]
[1768615856356,1.22323412,3289.5,3288.4,0.98728801]
[1768615856549,0.91947298,3289.4,3288.4,0.98728801]
[1768615856859,0.91947298,3289.3,3288.4,0.98728801]
[1768615857156,0.91947298,3289.2,3288.4,0.98728801]
[1768615857357,0.29377079,3289.7,3288.4,0.98728801]
[1768615857547,1.22323597,3289.6,3288.4,0.98728801]
[1768615857750,1.22323597,3289.5,3288.4,0.98728801]
[1768615857949,0.91947443,3289.4,3288.4,0.98728801]
[1768615858159,0.91947443,3289.3,3288.4,0.98728801]
[1768615858461,0.91947443,3289.2,3288.4,0.98728801]
[1768615858658,0.29377079,3289.7,3288.4,0.98728801]
[1768615858859,1.22323659,3289.6,3288.4,0.98728801]
[1768615859057,1.22323659,3289.5,3288.4,0.98728801]
[1768615859261,0.91947492,3289.4,3288.4,0.98728801]
[1768615859462,0.91947492,3289.3,3288.4,0.98728801]
[1768615859654,0.91947492,3289.2,3288.4,0.98728801]
[1768615859856,0.29377079,3289.7,3288.4,0.98728801]
[1768615860056,1.22323768,3289.6,3288.4,0.98728801]
[1768615860259,1.22323768,3289.5,3288.4,0.98728801]
[1768615860461,0.91947584,3289.4,3288.4,0.98728801]
[1768615860659,0.91947584,3289.3,3288.4,0.98728801]
[1768615860861,0.91947584,3289.2,3288.4,0.98728801]
[1768615861061,0.29377079,3289.7,3288.4,0.98728801]
[1768615861257,0.91947779,3289.6,3288.4,0.98728801]
[1768615861464,0.91947779,3289.5,3288.4,0.98728801]
[1768615861669,0.91947779,3289.4,3288.4,0.98728801]
[1768615861861,0.91947779,3289.3,3288.4,0.98728801]
[1768615862154,0.91947779,3289.2,3288.4,0.98728801]
[1768615862360,0.29377079,3289.7,3288.4,0.98728801]
[1768615862655,1.21561659,3289.6,3288.4,0.98728801]
[1768615862859,0.91948011,3289.5,3288.4,0.98728801]
[1768615863158,0.91948011,3289.4,3288.4,0.98728801]
[1768615863358,0.91948011,3289.3,3288.4,0.98728801]
[1768615863560,0.91948011,3289.2,3288.4,0.98728801]
[1768615863765,0.29377079,3289.7,3288.4,0.98728801]
[1768615863959,1.2156168,3289.6,3288.4,0.98728801]
[1768615864155,0.9194803,3289.5,3288.4,0.98728801]
[1768615864368,0.9194803,3289.4,3288.4,0.98728801]
[1768615864564,0.9194803,3289.3,3288.4,0.98728801]
[1768615864770,0.9194803,3289.2,3288.4,0.98728801]
[1768615865069,0.29377079,3289.7,3288.4,0.98728801]
[1768615865269,1.21561879,3289.6,3288.4,0.98728801]
[1768615865470,0.91948158,3289.5,3288.4,0.98728801]
[1768615865658,0.91948158,3289.4,3288.4,0.98728801]
[1768615865860,0.91948158,3289.3,3288.4,0.98728801]
[1768615866159,0.91948158,3289.2,3288.4,0.98728801]
[1768615866356,0.29377079,3289.7,3288.4,0.98728801]
[1768615866555,1.21548839,3289.6,3288.4,0.98728801]
[1768615866762,0.91935043,3289.5,3288.4,0.98728801]
[1768615866968,0.91935043,3289.4,3288.4,0.98728801]
[1768615867163,0.91935043,3289.3,3288.4,0.98728801]
[1768615867371,0.91935043,3289.2,3288.7,0.98689589]
[1768615867567,0.29377079,3289.7,3288.7,0.98689589]
[1768615867767,1.2154911,3289.6,3288.7,0.98689589]
[1768615867960,0.91935261,3289.5,3288.7,0.98689589]
[1768615868162,0.91935261,3289.4,3288.7,0.98689589]
[1768615868366,0.91935261,3289.3,3288.7,0.98689589]
[1768615868668,0.91935261,3289.2,3288.7,0.98689589]
[1768615868867,0.29377079,3289.7,3288.7,0.98689589]
[1768615869168,1.21550576,3289.6,3288.7,0.98689589]
[1768615869367,0.91936331,3289.5,3288.7,0.98689589]
[1768615869568,0.91936331,3289.4,3288.7,0.98689589]
[1768615869757,0.91936331,3289.3,3288.7,0.98689589]
[1768615869960,0.91936331,3289.2,3288.7,0.98689589]
[1768615870157,0.29377079,3289.7,3288.7,0.98689589]
[1768615870372,0.29615153,3289.6,3288.7,0.98689589]
[1768615870571,0.91939158,3289.5,3288.7,0.98689589]
[1768615870771,0.91939158,3289.4,3288.7,0.98689589]
[1768615870970,0.91939158,3289.3,3288.7,0.98689589]
[1768615871161,0.91939158,3289.2,3288.7,0.98689589]
[1768615871364,0.29377079,3289.7,3288.7,0.98689589]
[1768615871664,1.21767592,3289.6,3288.7,0.98689589]
[1768615871864,0.91939307,3289.5,3288.7,0.98689589]
[1768615872067,0.91939307,3289.4,3288.7,0.98689589]
[1768615872268,0.91939307,3289.3,3288.7,0.98689589]
[1768615872470,0.91939307,3289.3,3288.1,0.10588293]
[1768615872471,0.15203,3290.1,3288.9,0.98689589]
[1768615872668,1.21770484,3290.0,3289.1,0.98689589]
[1768615872972,1.21770484,3289.9,3289.1,0.98689589]
[1768615873173,1.21770484,3289.8,3289.1,0.98689589]
[1768615873360,1.21770484,3289.7,3289.1,0.98689589]
[1768615873566,0.91941587,3289.6,3289.1,0.98689589]
[1768615873874,0.91941587,3289.5,3289.1,0.98689589]
[1768615874075,0.91941587,3289.4,3289.1,0.98689589]
[1768615874275,0.49935083,3290.1,3289.1,0.98689589]
[1768615874582,1.21745615,3290.0,3289.1,0.98689589]
[1768615874772,1.21745624,3289.9,3289.1,0.98689589]
[1768615874973,1.21745624,3289.8,3289.1,0.98689589]
[1768615875175,1.21745624,3289.7,3289.1,0.98689589]
[1768615875375,0.91922918,3289.6,3288.9,0.98689589]
[1768615875568,0.91922918,3289.5,3288.9,0.98689589]
[1768615875769,0.91922918,3289.4,3288.9,0.98689589]
[1768615875972,0.34732083,3290.0,3288.9,0.98689589]
[1768615876177,1.21739609,3289.9,3288.9,0.98689589]
[1768615876374,1.21739609,3289.8,3288.9,0.98689589]
[1768615876676,1.21739609,3289.7,3288.9,0.98689589]
[1768615876870,0.91918212,3289.6,3288.9,0.98689589]
[1768615877072,0.91918212,3289.5,3288.9,0.98689589]
[1768615877378,0.91918212,3289.4,3288.9,0.98689589]
[1768615877576,0.34732083,3290.0,3288.9,0.98689589]
[1768615877780,1.2173286,3289.9,3288.9,0.98689589]
[1768615878080,1.2173286,3289.8,3288.9,0.98689589]
[1768615878274,1.2173286,3289.7,3288.9,0.98689589]
[1768615878572,0.34732083,3290.0,3288.9,0.98689589]
[1768615878573,0.9191311,3289.6,3288.9,0.98689589]
[1768615878763,0.9191311,3289.5,3288.9,0.98689589]
[1768615878966,0.9191311,3289.4,3288.9,0.98689589]
[1768615879179,0.34732083,3290.0,3288.9,0.98689589]
[1768615879368,1.21729002,3289.9,3288.9,0.98689589]
[1768615879568,1.21729002,3289.8,3288.9,0.98689589]
[1768615879769,1.21729002,3289.7,3288.9,0.98689589]
[1768615880069,0.91909976,3289.6,3288.9,0.98689589]
[1768615880376,0.91909976,3289.5,3288.9,0.98689589]
[1768615880576,0.91909976,3289.4,3288.9,0.98689589]
[1768615880878,0.34732083,3290.0,3288.9,0.98689589]
[1768615881071,1.21726119,3289.9,3288.9,0.98689589]
[1768615881270,1.21726119,3289.8,3288.9,0.98689589]
[1768615881475,1.21726119,3289.7,3288.9,0.98689589]
[1768615881674,0.91908006,3289.6,3288.9,0.98689589]
[1768615881973,0.91908006,3289.5,3288.9,0.98689589]
[1768615882175,0.91908006,3289.4,3288.9,0.98689589]
[1768615882369,0.34732083,3290.0,3288.9,0.98689589]
[1768615882569,1.21723696,3289.9,3288.9,0.98689589]
[1768615882773,1.21723696,3289.8,3288.9,0.98689589]
[1768615882973,1.21723696,3289.7,3288.9,0.98689589]
[1768615883276,0.91906197,3289.6,3288.9,0.98689589]
[1768615883581,0.91906197,3289.5,3288.9,0.98689589]
[1768615883780,0.91906197,3289.4,3288.9,0.98689589]
[1768615884080,0.34732083,3290.0,3288.9,0.98689589]
[1768615884279,1.20960125,3289.9,3288.9,0.98689589]
[1768615884580,1.20960125,3289.8,3288.9,0.98689589]
[1768615884877,0.91905418,3289.7,3288.9,0.98689589]
[1768615885079,0.91905418,3289.6,3288.9,0.98689589]
[1768615885274,0.91905418,3289.5,3288.9,0.98689589]
[1768615885475,0.91905418,3289.4,3288.9,0.98689589]
[1768615885677,0.34732083,3290.0,3288.9,0.98689589]
[1768615885875,1.20961628,3289.9,3288.9,0.98689589]
[1768615886183,1.20961628,3289.8,3289.1,0.98689589]
[1768615886482,0.91906518,3289.7,3289.1,0.98689589]
[1768615886681,0.91906518,3289.6,3289.1,0.98689589]
[1768615886882,0.34732083,3290.0,3289.1,0.98689589]
[1768615887082,0.29054766,3289.9,3289.1,0.98689589]
[1768615887283,0.34732083,3290.0,3289.1,0.98689589]
[1768615887480,0.29052461,3289.9,3289.1,0.98689589]
[1768615887672,0.34732083,3290.0,3289.1,0.98689589]
[1768615887872,0.29052522,3289.9,3289.1,0.98689589]
[1768615888073,0.34732083,3290.0,3289.1,0.98689589]
[1768615888273,0.29052434,3289.9,3289.1,0.98689589]
[1768615888474,0.34732083,3290.0,3289.1,0.98689589]
[1768615888771,0.29049886,3289.9,3289.1,0.98689589]
[1768615888968,0.34732083,3290.0,3289.1,0.98689589]
[1768615889167,0.29049885,3289.9,3289.1,0.98689589]
[1768615889378,0.34732083,3290.0,3289.1,0.98689589]
[1768615890181,0.15203,3290.1,3289.3,0.98689589]
[1768615890479,0.29048262,3290.0,3289.3,0.98689589]
[1768615890689,0.15203,3290.1,3289.3,0.98689589]
[1768615890871,0.29046132,3290.0,3289.3,0.98689589]
[1768615891072,0.15203,3290.1,3289.3,0.98689589]
[1768615891373,0.29046159,3290.0,3289.3,0.98689589]
[1768615891567,1.696,3290.3,3289.3,0.98689589]
[1768615891775,0.29044442,3290.2,3289.6,0.98689589]
[1768615892083,0.39280849,3290.4,3289.6,0.99037594]
[1768615892273,0.28314631,3290.3,3289.6,0.00348005]
[1768615892474,0.39280849,3290.4,3289.6,0.00348005]
[1768615892675,0.28307726,3290.3,3289.6,0.00348005]
[1768615892974,0.39280849,3290.4,3289.6,0.00348005]
[1768615894874,0.28295447,3290.3,3289.6,0.00348005]
[1768615895180,0.28295447,3290.2,3289.6,0.00348005]
[1768615895482,0.39280849,3290.4,3289.6,0.00348005]
[1768615895682,0.28291458,3290.3,3289.6,0.00348005]
[1768615895876,0.28291458,3290.2,3289.6,0.00348005]
[1768615896076,0.39280849,3290.4,3289.6,0.00348005]
[1768615896275,0.28291373,3290.3,3289.6,0.00348005]
[1768615896482,0.28291373,3290.2,3289.6,0.00348005]
[1768615896677,0.39280849,3290.4,3289.6,0.00348005]
[1768615896875,0.28288327,3290.3,3289.6,0.00348005]
[1768615897078,0.28288327,3290.2,3289.6,0.00348005]
[1768615897278,0.39280849,3290.4,3289.6,0.00348005]
[1768615897479,0.28285828,3290.3,3289.6,0.00348005]
[1768615897788,0.28285828,3290.2,3289.6,0.00348005]
[1768615897987,0.39280849,3290.4,3289.6,0.00348005]
[1768615898284,0.28285859,3290.3,3289.6,0.00348005]
[1768615898486,0.39280849,3290.4,3289.6,0.00348005]
[1768615898686,0.28283944,3290.3,3289.6,0.00348005]
[1768615898887,0.91427791,3290.2,3289.6,0.00348005]
[1768615899088,0.91427791,3290.1,3289.6,0.00348005]
[1768615899288,0.91427791,3290.0,3289.6,0.00348005]
[1768615899481,0.91427791,3289.9,3289.6,0.00348005]
[1768615899683,0.91427791,3289.8,3289.2,0.98689589]
[1768615899880,0.39280849,3290.4,3289.2,0.98689589]
[1768615900085,1.19705829,3290.3,3289.2,0.98689589]
[1768615900385,0.91423301,3290.2,3289.2,0.98689589]
[1768615900584,0.39280849,3290.4,3289.2,0.98689589]
[1768615900585,0.91423301,3290.1,3289.2,0.98689589]
[1768615900784,0.91423301,3290.0,3289.2,0.98955204]
[1768615900984,0.91423301,3289.9,3289.2,0.98955204]
[1768615901183,0.91423301,3289.8,3289.2,0.98955204]
[1768615901392,0.39280849,3290.4,3289.2,0.98955204]
[1768615901590,1.19700254,3290.3,3289.2,0.98955204]
[1768615901786,0.91419038,3290.2,3289.2,0.98955204]
[1768615901984,0.91419038,3290.1,3289.2,0.98955204]
[1768615902185,0.91419038,3290.0,3289.2,0.98955204]
[1768615902388,0.91419038,3289.9,3289.2,0.98955204]
[1768615902589,0.39280849,3290.4,3289.2,0.98955204]
[1768615902590,0.91419038,3289.8,3289.2,0.98955204]
[1768615902789,0.39280849,3290.4,3289.2,0.98955204]
[1768615903083,1.19700168,3290.3,3289.2,0.98955204]
[1768615903286,0.91418963,3290.2,3289.2,0.98955204]
[1768615903591,0.91418963,3290.1,3289.2,0.98955204]
[1768615903790,0.91418963,3290.0,3289.2,0.98955204]
[1768615903991,0.91418963,3289.9,3289.2,0.98955204]
[1768615904191,0.39280849,3290.4,3289.2,0.98955204]
[1768615904376,1.19696636,3290.3,3289.2,0.98955204]
[1768615904592,0.91416047,3290.2,3289.2,0.98955204]
[1768615904788,0.91416047,3290.1,3289.2,0.98955204]
[1768615905086,0.91416047,3290.0,3289.4,0.98689589]
[1768615905286,0.91416047,3289.9,3289.4,0.98689589]
[1768615905489,0.39280849,3290.4,3289.4,0.98689589]
[1768615905793,0.91416026,3290.3,3289.4,0.98689589]
[1768615906086,0.91416026,3290.2,3289.4,0.98689589]
[1768615906281,0.91416026,3290.1,3289.4,0.98689589]
[1768615906477,0.91416026,3290.0,3289.4,0.98689589]
[1768615906694,0.39280849,3290.4,3289.4,0.98689589]
[1768615906893,0.91417246,3290.3,3289.4,0.98689589]
[1768615907096,0.39280849,3290.4,3289.4,0.98689589]
[1768615907097,0.91417246,3290.2,3289.4,0.98689589]
[1768615907296,0.91417246,3290.1,3289.4,0.98689589]
[1768615907485,0.91417246,3290.0,3289.4,0.98689589]
[1768615907680,0.39280849,3290.4,3289.4,0.98689589]
[1768615907893,0.91419526,3290.3,3289.4,0.98689589]
[1768615908093,0.91419526,3290.2,3289.4,0.98689589]
[1768615908293,0.91419526,3290.1,3289.4,0.98689589]
[1768615908590,0.91419526,3290.0,3289.2,0.98955204]
[1768615908784,0.39280849,3290.4,3289.2,0.98955204]
[1768615908984,0.91422737,3290.3,3289.2,0.98955204]
[1768615909193,0.91422737,3290.2,3289.2,0.98955204]
[1768615909396,0.91422737,3290.1,3289.2,0.98955204]
[1768615909594,0.91422737,3290.0,3289.2,0.98955204]
[1768615909798,0.39280849,3290.3,3289.2,0.98955204]
[1768615909998,0.91427157,3290.2,3289.2,0.98955204]
[1768615910294,0.91427157,3290.1,3289.2,0.98955204]
[1768615910494,0.91427157,3290.0,3289.2,0.98955204]
[1768615910698,0.39280849,3290.3,3289.2,0.98955204]
[1768615910896,0.91433054,3290.2,3289.2,0.98955204]
[1768615911097,0.91433054,3290.1,3289.2,0.98955204]
[1768615911300,0.91433054,3290.0,3289.2,0.98955204]
[1768615911494,0.39280849,3290.3,3289.2,0.98955204]
[1768615911797,0.91440332,3290.2,3289.2,0.98955204]
[1768615912107,0.91440332,3290.1,3289.2,0.98955204]
[1768615912284,0.91440332,3290.0,3289.2,0.98955204]
[1768615912488,0.39280849,3290.3,3289.2,0.98955204]
[1768615912685,0.40191065,3290.1,3289.2,0.00265615]
[1768615912889,1.3164025,3290.0,3289.2,0.00265615]
[1768615913089,0.91449185,3289.9,3289.2,0.00265615]
[1768615913291,0.40191065,3290.0,3289.2,0.00265615]
[1768615913492,0.91460172,3289.9,3289.2,0.00265615]
[1768615913701,0.40191065,3290.0,3289.2,0.00265615]
[1768615913902,0.91460019,3289.9,3289.2,0.00265615]
[1768615914103,0.40191065,3290.0,3289.2,0.00265615]
[1768615914400,0.91462373,3289.9,3289.2,0.00265615]
[1768615914600,0.40191065,3290.0,3289.2,0.00265615]
[1768615914807,0.91473567,3289.9,3289.2,0.00265615]
[1768615914999,0.40191065,3290.0,3289.2,0.00265615]
[1768615915193,0.91473567,3289.9,3289.2,0.00265615]
[1768615915393,0.91473567,3289.8,3289.2,0.00265615]
[1768615915690,0.40191065,3290.0,3289.2,0.00265615]
[1768615915887,0.91490156,3289.9,3289.2,0.00265615]
[1768615916088,0.91490156,3289.8,3289.2,0.00265615]
[1768615916292,0.40191065,3290.0,3289.2,0.00265615]
[1768615916504,0.91505599,3289.9,3289.2,0.00265615]
[1768615916697,0.91505599,3289.8,3289.2,0.00265615]
[1768615916999,0.40191065,3290.0,3289.2,0.00265615]
[1768615917197,0.91505602,3289.9,3289.2,0.00265615]
[1768615917401,0.91505602,3289.8,3289.2,0.00265615]
[1768615917604,0.40191065,3290.0,3289.2,0.00265615]
[1768615917903,0.91514206,3289.9,3289.2,0.00265615]
[1768615918205,0.40191065,3290.0,3289.2,0.00265615]
[1768615918206,0.91514206,3289.8,3289.2,0.00265615]
[1768615918403,0.40191065,3290.0,3289.2,0.00265615]
[1768615918603,0.91523747,3289.9,3289.2,0.00265615]
[1768615918806,0.91523747,3289.8,3289.2,0.00265615]
[1768615918999,0.40191065,3290.0,3289.2,0.00265615]
[1768615919302,0.91523744,3289.9,3289.2,0.00265615]
[1768615919504,0.91523744,3289.8,3289.2,0.00265615]
[1768615919806,0.40191065,3290.0,3289.2,0.00265615]
[1768615919993,0.91534757,3289.9,3289.2,0.00265615]
[1768615920196,0.91534757,3289.8,3289.2,0.00265615]
[1768615920394,0.40191065,3290.0,3289.2,0.00265615]
[1768615920595,0.91545958,3289.9,3289.2,0.00265615]
[1768615920906,0.91545958,3289.8,3289.2,0.00265615]
[1768615921202,0.40191065,3290.0,3289.2,0.00265615]
[1768615921402,0.91562546,3289.9,3289.2,0.00265615]
[1768615921607,0.91562546,3289.8,3289.2,0.00265615]
[1768615921802,0.40191065,3290.0,3289.2,0.00265615]
[1768615922002,0.91561225,3289.9,3289.2,0.00265615]
[1768615922206,0.91561225,3289.8,3289.2,0.00265615]
[1768615922405,0.40191065,3290.0,3289.2,0.00265615]
[1768615922609,0.91559637,3289.9,3289.2,0.00265615]
[1768615922808,0.91559637,3289.8,3289.2,0.00265615]
[1768615922997,0.40191065,3290.0,3289.2,0.00265615]
[1768615923198,0.91559634,3289.9,3289.2,0.00265615]
[1768615923505,0.91559634,3289.8,3289.2,0.00265615]
[1768615923707,0.40191065,3290.0,3289.2,0.00265615]
[1768615923906,0.91558315,3289.9,3289.2,0.00265615]
[1768615924101,0.91558315,3289.8,3289.2,0.00265615]
[1768615924305,0.40191065,3290.0,3289.2,0.00265615]
[1768615924505,0.91556818,3289.9,3289.2,0.00265615]
[1768615924706,0.91556818,3289.8,3289.2,0.00265615]
[1768615924910,0.40191065,3290.0,3289.2,0.00265615]
[1768615925110,0.9155682,3289.9,3289.2,0.00265615]
[1768615925311,0.9155682,3289.8,3289.2,0.00265615]
[1768615925505,0.40191065,3290.0,3289.2,0.00265615]
[1768615925704,0.91535172,3289.9,3289.2,0.00265615]
[1768615925906,0.91535172,3289.8,3289.2,0.00265615]
[1768615926212,0.40191065,3290.0,3289.2,0.00265615]
[1768615926508,0.91534405,3289.9,3289.2,0.00265615]
[1768615926710,0.91534405,3289.8,3289.2,0.00265615]
[1768615926904,0.40191065,3290.0,3289.2,0.00265615]
[1768615927118,0.91534403,3289.9,3289.2,0.00265615]
[1768615927303,0.91534403,3289.8,3289.2,0.00265615]
[1768615927602,0.40191065,3290.0,3289.2,0.00265615]
[1768615927913,0.91533876,3289.9,3289.2,0.00265615]
[1768615928210,0.91533876,3289.8,3289.2,0.00265615]
[1768615928413,0.40191065,3290.0,3289.2,0.00265615]
[1768615928606,0.9153351,3289.9,3289.2,0.00265615]
[1768615928808,0.9153351,3289.8,3289.2,0.00265615]
[1768615929013,0.40191065,3290.0,3289.2,0.00265615]
[1768615929213,0.91533473,3289.9,3289.2,0.00265615]
[1768615929413,0.91533473,3289.8,3289.2,0.00265615]
[1768615929606,0.40191065,3290.0,3289.2,0.00265615]
[1768615929905,0.91533523,3289.9,3289.2,0.00265615]
[1768615930109,0.91533523,3289.8,3289.2,0.00265615]
[1768615930306,0.40191065,3290.0,3289.2,0.00265615]
[1768615930605,0.91533499,3289.9,3289.2,0.00265615]
[1768615930804,0.91533499,3289.8,3289.2,0.00265615]
[1768615931006,0.40191065,3290.0,3289.2,0.00265615]
[1768615931207,0.91533499,3289.9,3289.2,0.00265615]
[1768615931414,0.91533499,3289.8,3289.2,0.00265615]
[1768615931711,0.40191065,3290.0,3289.2,0.00265615]
[1768615931910,0.91533885,3289.9,3289.2,0.00265615]
[1768615932112,0.91533885,3289.8,3289.2,0.00265615]
[1768615932302,0.40191065,3290.0,3289.2,0.00265615]
[1768615932502,0.91534656,3289.9,3289.2,0.00265615]
[1768615932802,0.91534656,3289.8,3289.2,0.00265615]
[1768615933001,0.40191065,3290.0,3289.2,0.00265615]
[1768615933206,0.91534669,3289.9,3289.2,0.00265615]
[1768615933410,0.91534669,3289.8,3289.2,0.00265615]
[1768615933611,0.40191065,3290.0,3289.2,0.00265615]